Workbook

Sheet PLANILHA ORÇAMENTÁRIA
D1: Ministério da Integração e do Desenvolvimento Regional - MIDR
D2: Companhia de Desenvolvimento dos Vales do São Francisco e Parnaíba - CODEVASF
D3: 2ª Superintendência Regional - Gerência Regional de Infraestrutura (2ª/GRD)
B5: ANEXO 4 - PLANILHA ORÇAMENTÁRIA PARA EXECUÇÃO DE OBRAS E SERVIÇOS DE ENGENHARIA (SEM DESONERAÇÃO)
B9: Objeto: | D9: CONTRATAÇÃO DE OBRAS E SERVIÇOS DE ENGENHARIA PARA REGULARIZAÇÃO DE SUBLEITO E EXECUÇÃO DE REVESTIMENTO PRIMÁRIO NA ESTRADA DA IPUEIRA, MUNICÍPIO DE SERRA DO RAMALHO, NA ÁREA DE ABRANGÊNCIA DA 2ª SUPERINTENDÊNCIA REGIONAL DA CODEVASF, NO ESTADO DA BAHIA.
B11: Referências de Custos: SINAPI BAHIA (JULHO/2025); e SICRO BAHIA (ABRIL/2025). | I11: B.D.I. = | J11: =ROUNDUP(BDI!D36,4) -> 0.215
A14: Adequação e revestimento primário de estradas vicinais. | B14: ITEM | C14: DISCRIMINAÇÃO DOS SERVIÇOS | E14: UNIDADE | F14: QUANTIDADE | G14: CUSTO UNITÁRIO (SEM BDI) | H14: CUSTO TOTAL (SEM BDI) | I14: PREÇO UNITÁRIO (COM BDI) | J14: PREÇO TOTAL (COM BDI) | K14: % do Total
B15: 1 | C15: SERVIÇOS PRELIMINARES E ADMINISTRAÇÃO LOCAL
B16: 1.1 | C16: ='COMPOSIÇÕES SINAPI'!A11 -> CPU-01 | D16: ='COMPOSIÇÕES SINAPI'!D11 -> ADMINISTRAÇÃO LOCAL | E16: ='COMPOSIÇÕES SINAPI'!E11 -> % | F16: ='MEMÓRIA DE CÁLCULOS'!E13 -> 1 | G16: ='COMPOSIÇÕES SINAPI'!H14 -> 14114.88 | H16: =ROUNDUP(F16*G16,4) -> 14114.88 | I16: =TRUNC((1+$J$11)*G16,2) -> 17149.57 | J16: =TRUNC(F16*I16,2) -> 17149.57 | K16: =J16/$J$34 -> 0.03493351446
B17: 1.2 | C17: ='COMPOSIÇÕES SINAPI'!A16 -> CPU-02 | D17: ='COMPOSIÇÕES SINAPI'!D16 -> PLACA DE OBRA EM CHAPA DE AÇO GALVANIZADO (1,80 M * 3,60 M) | E17: ='COMPOSIÇÕES SINAPI'!E16 -> m² | F17: ='MEMÓRIA DE CÁLCULOS'!E14 -> 6.48 | G17: ='COMPOSIÇÕES SINAPI'!H27 -> 511.34 | H17: =ROUNDUP(F17*G17,4) -> 3313.4832 | I17: 621.27 | J17: 4025.82 | K17: 0.008200557867
B18: 1.3 | C18: ='COMPOSIÇÕES SICRO'!A151 -> SICRO 5914639 | D18: TRANSPORTE DE EQUIPAMENTOS EM RODOVIA COM REVESTIMENTO PRIMÁRIO - MOBILIZAÇÃO | E18: ='COMPOSIÇÕES SICRO'!I150 -> tkm | F18: ='MEMÓRIA DE CÁLCULOS'!E15 -> 823.74 | G18: ='COMPOSIÇÕES SICRO'!I172 -> 0.69 | H18: 568.3806 | I18: 0.83 | J18: 683.7 | K18: 0.001392690536
B19: 1.4 | C19: ='COMPOSIÇÕES SICRO'!A177 -> SICRO 5914640 | D19: TRANSPORTE DE EQUIPAMENTOS EM RODOVIA PAVIMENTADA - MOBILIZAÇÃO | E19: ='COMPOSIÇÕES SICRO'!I176 -> tkm | F19: ='MEMÓRIA DE CÁLCULOS'!E16 -> 1098.32 | G19: ='COMPOSIÇÕES SICRO'!I198 -> 0.57 | H19: 626.0424 | I19: 0.69 | J19: 757.84 | K19: 0.001543713026
B20: 1.5 | C20: ='COMPOSIÇÕES SICRO'!A151 -> SICRO 5914639 | D20: TRANSPORTE DE EQUIPAMENTOS EM RODOVIA COM REVESTIMENTO PRIMÁRIO - DESMOBILIZAÇÃO | E20: ='COMPOSIÇÕES SICRO'!I150 -> tkm | F20: ='MEMÓRIA DE CÁLCULOS'!E17 -> 823.74 | G20: ='COMPOSIÇÕES SICRO'!I172 -> 0.69 | H20: 568.3806 | I20: 0.83 | J20: 683.7 | K20: 0.001392690536
B21: 1.6 | C21: ='COMPOSIÇÕES SICRO'!A177 -> SICRO 5914640 | D21: TRANSPORTE DE EQUIPAMENTOS EM RODOVIA PAVIMENTADA - DESMOBILIZAÇÃO | E21: ='COMPOSIÇÕES SICRO'!I176 -> tkm | F21: ='MEMÓRIA DE CÁLCULOS'!E18 -> 1098.32 | G21: ='COMPOSIÇÕES SICRO'!I198 -> 0.57 | H21: 626.0424 | I21: 0.69 | J21: 757.84 | K21: 0.001543713026
B22: TOTAL DO ITEM 1 | H22: =SUM(H16:H21) -> 19817.2092 | J22: =SUM(J16:J21) -> 24058.47 | K22: 0.04900687945
B24: ITEM | C24: DISCRIMINAÇÃO DOS SERVIÇOS | E24: UNIDADE | F24: QUANTIDADE | G24: CUSTO UNITÁRIO (SEM BDI) | H24: CUSTO TOTAL (SEM BDI) | I24: PREÇO UNITÁRIO (COM BDI) | J24: PREÇO TOTAL (COM BDI) | K24: % do Total
B25: 2 | C25: SERVIÇOS TÉCNICOS PARA LIMPEZA, REGULARIZAÇÃODE SUBLEITO E REVESTIMENTO PRIMÁRIO DE ESTRADAS VICINAIS
B26: 2.1 | C26: ='COMPOSIÇÕES SICRO'!A72 -> ADAPTADO DE SICRO 5502985 | D26: LIMPEZA MECANIZADA DA CAMADA VEGETAL COM RETROESCAVADEIRA | E26: ='COMPOSIÇÕES SICRO'!I71 -> m² | F26: ='MEMÓRIA DE CÁLCULOS'!E20 -> 23285.57 | G26: ='COMPOSIÇÕES SICRO'!I94 -> 0.45 | H26: =ROUNDUP(F26*G26,4) -> 10478.5065 | I26: =TRUNC((1+$J$11)*G26,2) -> 0.54 | J26: =TRUNC(F26*I26,2) -> 12574.2 | K26: =J26/$J$34 -> 0.02561352836
B27: 2.2 | C27: ='COMPOSIÇÕES SICRO'!A203 -> SICRO 4011209 | D27: REGULARIZAÇÃO DE SUBLEITO | E27: ='COMPOSIÇÕES SICRO'!I202 -> m² | F27: ='MEMÓRIA DE CÁLCULOS'!E21 -> 32820 | G27: ='COMPOSIÇÕES SICRO'!I230 -> 1.58 | H27: 51855.6 | I27: 1.91 | J27: 62686.2 | K27: 0.1276912059
B28: 2.3 | C28: ='COMPOSIÇÕES SICRO'!A10 -> SICRO 4015612 | D28: EXECUÇÃO DE REVESTIMENTO PRIMÁRIO COM MATERIAL DE JAZIDA | E28: ='COMPOSIÇÕES SICRO'!I9 -> m³ | F28: ='MEMÓRIA DE CÁLCULOS'!E22 -> 4102.5 | G28: ='COMPOSIÇÕES SICRO'!I40 -> 13.75 | H28: 56409.375 | I28: 16.7 | J28: 68511.75 | K28: 0.139557797
B29: 2.4 | C29: ='COMPOSIÇÕES SICRO'!A45 -> SICRO 4016096 | D29: ESCAVAÇÃO E CARGA DE MATERIAL DE JAZIDA COM ESCAVADEIRA HIDRÁULICA DE 1,56 M³ | E29: ='COMPOSIÇÕES SICRO'!I44 -> m³ | F29: ='MEMÓRIA DE CÁLCULOS'!E23 -> 4513.84 | G29: ='COMPOSIÇÕES SICRO'!I67 -> 1.48 | H29: 6680.4832 | I29: 1.79 | J29: 8079.77 | K29: 0.01645841628
B30: 2.5 | C30: ='COMPOSIÇÕES SICRO'!A99 -> SICRO 5901639 | D30: TRANSPORTE COM CAMINHÃO BASCULANTE COM CAÇAMBA ESTANQUE COM CAPACIDADE DE 14 M³ - RODOVIA EM LEITO NATURAL | E30: ='COMPOSIÇÕES SICRO'!I98 -> tkm | F30: ='MEMÓRIA DE CÁLCULOS'!E24 -> 160805.69 | G30: ='COMPOSIÇÕES SICRO'!I120 -> 0.91 | H30: 146333.1779 | I30: 1.1 | J30: 176886.25 | K30: 0.3603156447
B31: 2.6 | C31: ='COMPOSIÇÕES SICRO'!A125 -> SICRO 5901640 | D31: TRANSPORTE COM CAMINHÃO BASCULANTE COM CAÇAMBA ESTANQUE COM CAPACIDADE DE 14 M³ - RODOVIA PAVIMENTADA | E31: ='COMPOSIÇÕES SICRO'!I124 -> tkm | F31: ='MEMÓRIA DE CÁLCULOS'!E25 -> 172654.53 | G31: ='COMPOSIÇÕES SICRO'!I146 -> 0.66 | I31: 0.8 | J31: 138123.62 | K31: 0.2813565282
B32: TOTAL DO ITEM 2 | H32: =SUM(H26:H30) -> 271757.1426 | J32: =SUM(J26:J31) -> 466861.79 | K32: 0.9509931206
B34: Total Geral | H34: =SUM(H22,H32) -> 291574.3518 | J34: =TRUNC(SUM(J22,J32),2) -> 490920.26 | K34: =SUM(K22,K32) -> 1
B35: Preço Médio por km: | H35: =H34/5 -> 58314.87036 | J35: =TRUNC(J34/5.47,2) -> 89747.76
G36: Preço Médio por m²: | H36: =H35/6000 -> 9.71914506 | J36: =J34/27350 -> 17.94955247

Sheet CRONO FISICO-FINANCEIRO
B1: CONTRATAÇÃO DE OBRAS E SERVIÇOS DE ENGENHARIA PARA REGULARIZAÇÃO DE SUBLEITO E EXECUÇÃO DE REVESTIMENTO PRIMÁRIO NA ESTRADA DA IPUEIRA, MUNICÍPIO DE SERRA DO RAMALHO, NA ÁREA DE ABRANGÊNCIA DA 2ª SUPERINTENDÊNCIA REGIONAL DA CODEVASF, NO ESTADO DA BAHIA.
B3: ANEXO 4 - CRONOGRAMA DE EXECUÇÃO FÍSICO-FINANCEIRA
B5: ='PLANILHA ORÇAMENTÁRIA'!B15 -> 1 | C5: SERVIÇOS PRELIMINARES E ADMINISTRAÇÃO LOCAL | E5: VALOR TOTAL | F5: MÊS 1 | G5: MÊS 2 | H5: MÊS 3 | I5: TOTAL
B6: ='PLANILHA ORÇAMENTÁRIA'!B16 -> 1.1 | C6: ='PLANILHA ORÇAMENTÁRIA'!C16 -> CPU-01 | D6: ='PLANILHA ORÇAMENTÁRIA'!D16 -> ADMINISTRAÇÃO LOCAL | E6: ='PLANILHA ORÇAMENTÁRIA'!J16 -> 17149.57 | F6: =TRUNC($E$6*F7,2) -> 1560.62 | G6: =TRUNC($E$6*G7,2) -> 8475.31 | H6: =TRUNC($E$6*H7,2) -> 7113.64 | I6: =SUM(F6:H6) -> 17149.57
E7: % | F7: 0.091001 | G7: 0.4942 | H7: 0.4148 | I7: 1.000001
B8: ='PLANILHA ORÇAMENTÁRIA'!B17 -> 1.2 | C8: ='PLANILHA ORÇAMENTÁRIA'!C17 -> CPU-02 | D8: ='PLANILHA ORÇAMENTÁRIA'!D17 -> PLACA DE OBRA EM CHAPA DE AÇO GALVANIZADO (1,80 M * 3,60 M) | E8: ='PLANILHA ORÇAMENTÁRIA'!J17 -> 4025.82 | F8: =TRUNC($E$8*F9,2) -> 4025.82 | G8: =TRUNC($E$8*G9,2) -> 0 | H8: =TRUNC($E$8*H9,2) -> 0 | I8: 4025.82
E9: % | F9: 1 | G9: 0 | H9: 0 | I9: 1
B10: ='PLANILHA ORÇAMENTÁRIA'!B18 -> 1.3 | C10: ='PLANILHA ORÇAMENTÁRIA'!C18 -> SICRO 5914639 | D10: ='PLANILHA ORÇAMENTÁRIA'!D18 -> TRANSPORTE DE EQUIPAMENTOS EM RODOVIA COM REVESTIMENTO PRIMÁRIO - MOBILIZAÇÃO | E10: ='PLANILHA ORÇAMENTÁRIA'!J18 -> 683.7 | F10: =TRUNC($E$10*F11,2) -> 683.7 | G10: =TRUNC($E$10*G11,2) -> 0 | H10: =TRUNC($E$10*H11,2) -> 0 | I10: 683.7
E11: % | F11: 1 | G11: 0 | H11: 0 | I11: 1
B12: ='PLANILHA ORÇAMENTÁRIA'!B19 -> 1.4 | C12: ='PLANILHA ORÇAMENTÁRIA'!C19 -> SICRO 5914640 | D12: ='PLANILHA ORÇAMENTÁRIA'!D19 -> TRANSPORTE DE EQUIPAMENTOS EM RODOVIA PAVIMENTADA - MOBILIZAÇÃO | E12: ='PLANILHA ORÇAMENTÁRIA'!J19 -> 757.84 | F12: =TRUNC($E$12*F13,2) -> 757.84 | G12: =TRUNC($E$12*G13,2) -> 0 | H12: =TRUNC($E$12*H13,2) -> 0 | I12: 757.84
E13: % | F13: 1 | G13: 0 | H13: 0 | I13: 1
B14: ='PLANILHA ORÇAMENTÁRIA'!B20 -> 1.5 | C14: ='PLANILHA ORÇAMENTÁRIA'!C20 -> SICRO 5914639 | D14: ='PLANILHA ORÇAMENTÁRIA'!D20 -> TRANSPORTE DE EQUIPAMENTOS EM RODOVIA COM REVESTIMENTO PRIMÁRIO - DESMOBILIZAÇÃO | E14: ='PLANILHA ORÇAMENTÁRIA'!J20 -> 683.7 | F14: =TRUNC($E$14*F15,2) -> 0 | G14: =TRUNC($E$14*G15,2) -> 341.85 | H14: =TRUNC($E$14*H15,2) -> 341.85 | I14: 683.7
E15: % | F15: 0 | G15: 0.5 | H15: 0.5 | I15: 1
B16: ='PLANILHA ORÇAMENTÁRIA'!B21 -> 1.6 | C16: ='PLANILHA ORÇAMENTÁRIA'!C21 -> SICRO 5914640 | D16: ='PLANILHA ORÇAMENTÁRIA'!D21 -> TRANSPORTE DE EQUIPAMENTOS EM RODOVIA PAVIMENTADA - DESMOBILIZAÇÃO | E16: ='PLANILHA ORÇAMENTÁRIA'!J21 -> 757.84 | F16: =TRUNC($E$16*F17,2) -> 0 | G16: =TRUNC($E$16*G17,2) -> 378.92 | H16: =TRUNC($E$16*H17,2) -> 378.92 | I16: 757.84
E17: % | F17: 0 | G17: 0.5 | H17: 0.5 | I17: 1
E18: =SUM(E6,E8,E10,E12,E14,E16) -> 24058.47 | F18: =SUM(F6,F8,F10,F12,F14,F16) -> 7027.98 | G18: =SUM(G6,G8,G10,G12,G14,G16) -> 9196.08 | H18: 7834.41 | I18: =SUM(I6,I8,I10,I12,I14,I16) -> 24058.47
B19: ='PLANILHA ORÇAMENTÁRIA'!B25 -> 2 | C19: SERVIÇOS TÉCNICOS PARA LIMPEZA, REGULARIZAÇÃO DE SUBLEITO E REVESTIMENTO PRIMÁRIO DE ESTRADA VICINAL | E19: VALOR TOTAL | F19: MÊS 1 | G19: MÊS 2 | H19: MÊS 3 | I19: TOTAL
B20: ='PLANILHA ORÇAMENTÁRIA'!B26 -> 2.1 | C20: ='PLANILHA ORÇAMENTÁRIA'!C26 -> ADAPTADO DE SICRO 5502985 | D20: ='PLANILHA ORÇAMENTÁRIA'!D26 -> LIMPEZA MECANIZADA DA CAMADA VEGETAL COM RETROESCAVADEIRA | E20: ='PLANILHA ORÇAMENTÁRIA'!J26 -> 12574.2 | F20: =TRUNC($E$20*F21,2) -> 6287.1 | G20: =TRUNC($E$20*G21,2) -> 6287.1 | H20: =TRUNC($E$20*H21,2) -> 0 | I20: =SUM(F20:H20) -> 12574.2
E21: % | F21: 0.5 | G21: 0.5 | H21: 0 | I21: 1
B22: ='PLANILHA ORÇAMENTÁRIA'!B27 -> 2.2 | C22: ='PLANILHA ORÇAMENTÁRIA'!C27 -> SICRO 4011209 | D22: ='PLANILHA ORÇAMENTÁRIA'!D27 -> REGULARIZAÇÃO DE SUBLEITO | E22: ='PLANILHA ORÇAMENTÁRIA'!J27 -> 62686.2 | F22: =TRUNC($E$22*F23,2) -> 31343.1 | G22: =TRUNC($E$22*G23,2) -> 31343.1 | H22: =TRUNC($E$22*H23,2) -> 0 | I22: 62686.2
E23: % | F23: 0.5 | G23: 0.5 | H23: 0 | I23: 1
B24: ='PLANILHA ORÇAMENTÁRIA'!B28 -> 2.3 | C24: ='PLANILHA ORÇAMENTÁRIA'!C28 -> SICRO 4015612 | D24: ='PLANILHA ORÇAMENTÁRIA'!D28 -> EXECUÇÃO DE REVESTIMENTO PRIMÁRIO COM MATERIAL DE JAZIDA | E24: ='PLANILHA ORÇAMENTÁRIA'!J28 -> 68511.75 | F24: =TRUNC($E$24*F25,2) -> 0 | G24: =TRUNC($E$24*G25,2) -> 34255.87 | H24: =TRUNC($E$24*H25,2) -> 34255.88 | I24: 68511.75
E25: % | F25: 0 | G25: 0.5 | H25: 0.5000002 | I25: 1.0000002
B26: ='PLANILHA ORÇAMENTÁRIA'!B29 -> 2.4 | C26: ='PLANILHA ORÇAMENTÁRIA'!C29 -> SICRO 4016096 | D26: ='PLANILHA ORÇAMENTÁRIA'!D29 -> ESCAVAÇÃO E CARGA DE MATERIAL DE JAZIDA COM ESCAVADEIRA HIDRÁULICA DE 1,56 M³ | E26: ='PLANILHA ORÇAMENTÁRIA'!J29 -> 8079.77 | F26: =TRUNC($E$26*F27,2) -> 0 | G26: =TRUNC($E$26*G27,2) -> 4039.88 | H26: =TRUNC($E$26*H27,2) -> 4039.89 | I26: 8079.77
E27: % | F27: 0 | G27: 0.5 | H27: 0.500001 | I27: 1.000001
B28: ='PLANILHA ORÇAMENTÁRIA'!B30 -> 2.5 | C28: ='PLANILHA ORÇAMENTÁRIA'!C30 -> SICRO 5901639 | D28: ='PLANILHA ORÇAMENTÁRIA'!D30 -> TRANSPORTE COM CAMINHÃO BASCULANTE COM CAÇAMBA ESTANQUE COM CAPACIDADE DE 14 M³ - RODOVIA EM LEITO NATURAL | E28: ='PLANILHA ORÇAMENTÁRIA'!J30 -> 176886.25 | F28: =TRUNC($E$28*F29,2) -> 0 | G28: =TRUNC($E$28*G29,2) -> 88443.12 | H28: =TRUNC($E$28*H29,2) -> 88443.13 | I28: 176886.25
E29: % | F29: 0 | G29: 0.5 | H29: 0.50000005 | I29: 1.00000005
B30: ='PLANILHA ORÇAMENTÁRIA'!B31 -> 2.6 | C30: ='PLANILHA ORÇAMENTÁRIA'!C31 -> SICRO 5901640 | D30: ='PLANILHA ORÇAMENTÁRIA'!D31 -> TRANSPORTE COM CAMINHÃO BASCULANTE COM CAÇAMBA ESTANQUE COM CAPACIDADE DE 14 M³ - RODOVIA PAVIMENTADA | E30: ='PLANILHA ORÇAMENTÁRIA'!J31 -> 138123.62 | F30: =TRUNC($E$30*F31,2) -> 0 | G30: =TRUNC($E$30*G31,2) -> 69061.81 | H30: =TRUNC($E$30*H31,2) -> 69061.81 | I30: 138123.62
E31: % | F31: 0 | G31: 0.5 | H31: 0.50000001 | I31: 1.00000001
E32: =SUM(E20,E22,E24,E26,E28,E30) -> 466861.79 | F32: =SUM(F20,F22,F24,F26,F28,F30) -> 37630.2 | G32: =SUM(G20,G22,G24,G26,G28,G30) -> 233430.88 | H32: =SUM(H20,H22,H24,H26,H28,H30) -> 195800.71 | I32: =SUM(I20,I22,I24,I26,I28,I30) -> 466861.79
D33: TOTAL | E33: =SUM(E18,E32) -> 490920.26 | F33: =SUM(F18,F32) -> 44658.18 | G33: =SUM(G18,G32) -> 242626.96 | H33: =SUM(H18,H32) -> 203635.12 | I33: =SUM(I18,I32) -> 490920.26
D34: TOTAL - ADMINISTRAÇÃO LOCAL | E34: =E33-E10 -> 490236.56
D35: TOTAL SEM ADMINISTRAÇÃO: | E35: =E33-E6 -> 473770.69 | F35: =F33-F6 -> 43097.56 | G35: =G33-G6 -> 234151.65 | H35: =H33-H6 -> 196521.48
D36: % PARA ADMINISTRAÇÃO | F36: =F35/$E$35 -> 0.09096713011 | G36: =G35/$E$35 -> 0.4942299195 | H36: 0.4148029503

Sheet MEMÓRIA DE CÁLCULOS
C1: Ministério da Integração e do Desenvolvimento Regional - MIDR
C2: Companhia de Desenvolvimento dos Vales do São Francisco e Parnaíba - CODEVASF
C3: 2ª Superintendência Regional - Gerência Regional de Infraestrutura (2ª/GRD)
A5: ANEXO 4 - MEMÓRIA DE CÁLCULOS - MÓDULO MÍNIMO DE 30.000 M² DE ESTRADAS
A9: OBJETO: | C9: CONTRATAÇÃO DE OBRAS E SERVIÇOS DE ENGENHARIA PARA REGULARIZAÇÃO DE SUBLEITO E EXECUÇÃO DE REVESTIMENTO PRIMÁRIO NA ESTRADA DA IPUEIRA, MUNICÍPIO DE SERRA DO RAMALHO, NA ÁREA DE ABRANGÊNCIA DA 2ª SUPERINTENDÊNCIA REGIONAL DA CODEVASF, NO ESTADO DA BAHIA.
A11: ITEM | B11: DISCRIMINAÇÃO DOS SERVIÇOS | D11: UNIDADE | E11: QUANTIDADE | F11: MEMÓRIAS DE CÁLCULOS
A12: 1 | B12: SERVIÇOS PRELIMINARES E ADMINISTRAÇÃO LOCAL
A13: 1.1 | B13: ='COMPOSIÇÕES SINAPI'!A11 -> CPU-01 | C13: ='COMPOSIÇÕES SINAPI'!D11 -> ADMINISTRAÇÃO LOCAL | D13: ='COMPOSIÇÕES SINAPI'!E11 -> % | E13: 1 | F13: Serão utilizados 192 horas de encarregado geral + 48 horas de engenheiro de obras júnior.
A14: 1.2 | B14: ='COMPOSIÇÕES SINAPI'!A16 -> CPU-02 | C14: ='COMPOSIÇÕES SINAPI'!D16 -> PLACA DE OBRA EM CHAPA DE AÇO GALVANIZADO (1,80 M * 3,60 M) | D14: ='COMPOSIÇÕES SINAPI'!E16 -> m² | E14: =1.8*3.6 -> 6.48 | F14: Será fornecida e instalada 01 placa de obra com 1,80 m de altura e 3,60 m de largura = 6,48 m² por placa.
A15: 1.3 | B15: ='COMPOSIÇÕES SICRO'!A151 -> SICRO 5914639 | C15: TRANSPORTE DE EQUIPAMENTOS EM RODOVIA COM REVESTIMENTO PRIMÁRIO - MOBILIZAÇÃO | D15: ='COMPOSIÇÕES SICRO'!I150 -> tkm | E15: =TRUNC(SUM('Mob e Desmob OBRA cascalho'!F27:G27+'Mob e Desmob JAZ. cascalho'!F25:G25),2) -> 823.74 | F15: Cálculo: 460,74 tkm (Bom Jesus da Lapa à obra) + 363,00 tkm (Bom Jesus da Lapa à jazida de cascalho) = 823,74 tkm no total
A16: 1.4 | B16: ='COMPOSIÇÕES SICRO'!A177 -> SICRO 5914640 | C16: TRANSPORTE DE EQUIPAMENTOS EM RODOVIA PAVIMENTADA - MOBILIZAÇÃO | D16: ='COMPOSIÇÕES SICRO'!I176 -> tkm | E16: =TRUNC(SUM('Mob e Desmob OBRA asfalto'!F27:G27+'Mob e Desmob JAZ. asfalto'!F25:G25),2) -> 1098.32 | F16: Cálculo: 614,32 tkm (Bom Jesus da Lapa à obra) + 484,00 tkm (Bom Jesus da Lapa à jazida de cascalho) = 1.098,32 tkm no total
A17: 1.5 | B17: ='COMPOSIÇÕES SICRO'!A151 -> SICRO 5914639 | C17: TRANSPORTE DE EQUIPAMENTOS EM RODOVIA COM REVESTIMENTO PRIMÁRIO - DESMOBILIZAÇÃO | D17: ='COMPOSIÇÕES SICRO'!I150 -> tkm | E17: =TRUNC(SUM('Mob e Desmob OBRA cascalho'!F27:G27+'Mob e Desmob JAZ. cascalho'!F25:G25),2) -> 823.74 | F17: Cálculo: 460,74 tkm (Bom Jesus da Lapa à obra) + 363,00 tkm (Bom Jesus da Lapa à jazida de cascalho) = 823,74 tkm no total
A18: 1.6 | B18: ='COMPOSIÇÕES SICRO'!A177 -> SICRO 5914640 | C18: TRANSPORTE DE EQUIPAMENTOS EM RODOVIA PAVIMENTADA - DESMOBILIZAÇÃO | D18: ='COMPOSIÇÕES SICRO'!I176 -> tkm | E18: =TRUNC(SUM('Mob e Desmob OBRA asfalto'!F27:G27+'Mob e Desmob JAZ. asfalto'!F25:G25),2) -> 1098.32 | F18: Cálculo: 614,32 tkm (Bom Jesus da Lapa à obra) + 484,00 tkm (Bom Jesus da Lapa à jazida de cascalho) = 1.098,32 tkm no total
A19: 2 | B19: SERVIÇOS TÉCNICOS PARA LIMPEZA, REGULARIZAÇÃO DE SUBLEITO E REVESTIMENTO PRIMÁRIO DE ESTRADAS VICINAIS
A20: 2.1 | B20: ='COMPOSIÇÕES SICRO'!A72 -> ADAPTADO DE SICRO 5502985 | C20: LIMPEZA MECANIZADA DA CAMADA VEGETAL COM RETROESCAVADEIRA | D20: ='COMPOSIÇÕES SICRO'!I71 -> m² | E20: 23285.57 | F20: Vide levantamentos topográficos.
A21: 2.3 | B21: ='COMPOSIÇÕES SICRO'!A203 -> SICRO 4011209 | C21: REGULARIZAÇÃO DE SUBLEITO | D21: ='COMPOSIÇÕES SICRO'!I202 -> m² | E21: 32820 | F21: Vide levantamentos topográficos.
A22: 2.4 | B22: ='COMPOSIÇÕES SICRO'!A10 -> SICRO 4015612 | C22: EXECUÇÃO DE REVESTIMENTO PRIMÁRIO COM MATERIAL DE JAZIDA | D22: ='COMPOSIÇÕES SICRO'!I9 -> m³ | E22: 4102.5 | F22: Volume geométrico compactado (vide levantamentos topográficos).
A23: 2.5 | B23: ='COMPOSIÇÕES SICRO'!A45 -> SICRO 4016096 | C23: ESCAVAÇÃO E CARGA DE MATERIAL DE JAZIDA COM ESCAVADEIRA HIDRÁULICA DE 1,56 M³ | D23: ='COMPOSIÇÕES SICRO'!I44 -> m³ | E23: =TRUNC(E22*(2.063/1.875),2) -> 4513.84 | F23: Volume geométrico compactado * empolamento (2,063/1,875 = 1,10) - (massa específica compactada/massa específica do material natural)
A24: 2.6 | B24: ='COMPOSIÇÕES SICRO'!A99 -> SICRO 5901639 | C24: TRANSPORTE COM CAMINHÃO BASCULANTE COM CAÇAMBA ESTANQUE COM CAPACIDADE DE 14 M³ - RODOVIA EM LEITO NATURAL | D24: ='COMPOSIÇÕES SICRO'!I98 -> tkm | E24: =TRUNC(E22*(2.063/1.5)*1.5*19,2) -> 160805.69 | F24: Transporte de material de jazida: 4.102,50 m³ (material para revestimento) * 2.063/1,50 (massa específica compactada/massa específica solta) * 1,50 (densidade do material) * 19 km em leito natual = 160.805,69 tkm.
A25: 2.7 | B25: ='COMPOSIÇÕES SICRO'!A125 -> SICRO 5901640 | C25: TRANSPORTE COM CAMINHÃO BASCULANTE COM CAÇAMBA ESTANQUE COM CAPACIDADE DE 14 M³ - RODOVIA PAVIMENTADA | D25: ='COMPOSIÇÕES SICRO'!I124 -> tkm | E25: =TRUNC(E22*(2.063/1.5)*1.5*20.4,2) -> 172654.53 | F25: Transporte de material de jazida: 4.102,50 m³ (material para revestimento) * 2.063/1,50 (massa específica compactada/massa específica solta) * 1,50 (densidade do material) * 20,4 km em via pavimentada = 172.654,53 tkm.

Sheet COMPOSIÇÕES SICRO
A1: MINISTÉRIO DA INTEGRAÇÃO E DO DESENVOLVIMENTO REGIONAL
A2: COMPANHIA DE DESENVOLVIMENTO DOS VALES DO SÃO FRANCISCO E DO PARNAÍBA
A3: 2ª SUPERINTENDÊNCIA REGIONAL - GERÊNCIA DE INFRAESTRUTURA
A5: OBJETO: CONTRATAÇÃO DE OBRAS E SERVIÇOS DE ENGENHARIA PARA REGULARIZAÇÃO DE SUBLEITO E EXECUÇÃO DE REVESTIMENTO PRIMÁRIO NA ESTRADA DA IPUEIRA, MUNICÍPIO DE SERRA DO RAMALHO, NA ÁREA DE ABRANGÊNCIA DA 2ª SUPERINTENDÊNCIA REGIONAL DA CODEVASF, NO ESTADO DA BAHIA.
A7: CGCIT | I7: DNIT
A8: SISTEMA DE CUSTOS REFERENCIAIS DE OBRAS - SICRO | D8: Bahia | G8: FIC | H8: 0.01425
A9: Custo Unitário de Referência | D9: Abril de 2025 | G9: Produção da equipe | H9: 134.56 | I9: m³
A10: SICRO 4015612 | B10: Execução de revestimento primário com material de jazida - 100% Proctor intermediário | H10: Valores em reais (R$)
A11: A - EQUIPAMENTOS | C11: Quantidade | D11: Utilização | F11: Custo Horário | I11: Custo
D12: Operativa | E12: Improdutiva | F12: Produtivo | G12: Improdutivo | I12: Horário Total
A13: ='CUSTOS UNIT. SICRO e SINAPI'!D8 -> E9571 | B13: ='CUSTOS UNIT. SICRO e SINAPI'!A8 -> Caminhão tanque com capacidade de 10.000 l - 188 kW | C13: 1 | D13: 0.74 | E13: 0.26 | F13: ='CUSTOS UNIT. SICRO e SINAPI'!F8 -> 331.9819 | G13: ='CUSTOS UNIT. SICRO e SINAPI'!G8 -> 87.6603 | I13: =ROUND(((D13*F13)+(E13*G13))*C13,4) -> 268.4583
A14: ='CUSTOS UNIT. SICRO e SINAPI'!D14 -> E9518 | B14: ='CUSTOS UNIT. SICRO e SINAPI'!A14 -> Grade de 24 discos rebocável de D = 60 cm (24") | C14: 1 | D14: 0.41 | E14: 0.59 | F14: ='CUSTOS UNIT. SICRO e SINAPI'!F14 -> 5.0245 | G14: ='CUSTOS UNIT. SICRO e SINAPI'!G14 -> 3.499 | I14: 4.1245
A15: ='CUSTOS UNIT. SICRO e SINAPI'!D15 -> E9524 | B15: ='CUSTOS UNIT. SICRO e SINAPI'!A15 -> Motoniveladora - 93 kW | C15: 1 | D15: 0.59 | E15: 0.41 | F15: ='CUSTOS UNIT. SICRO e SINAPI'!F15 -> 287.6661 | G15: ='CUSTOS UNIT. SICRO e SINAPI'!G15 -> 128.1841 | I15: 222.2785
A16: ='CUSTOS UNIT. SICRO e SINAPI'!D17 -> E9762 | B16: ='CUSTOS UNIT. SICRO e SINAPI'!A17 -> Rolo compactador de pneus autopropelido de 27 t - 85 kW | C16: 1 | D16: 0.96 | E16: 0.04 | F16: ='CUSTOS UNIT. SICRO e SINAPI'!F17 -> 262.6866 | G16: ='CUSTOS UNIT. SICRO e SINAPI'!G17 -> 131.0659 | I16: 257.4218
A17: ='CUSTOS UNIT. SICRO e SINAPI'!D18 -> E9685 | B17: ='CUSTOS UNIT. SICRO e SINAPI'!A18 -> Rolo compactador pé de carneiro vibratório autopropelido por pneus de 11,6 t - 82 kW | C17: 1 | D17: 1 | E17: 0 | F17: ='CUSTOS UNIT. SICRO e SINAPI'!F18 -> 231.6833 | G17: ='CUSTOS UNIT. SICRO e SINAPI'!G18 -> 107.4007 | I17: 231.6833
A18: ='CUSTOS UNIT. SICRO e SINAPI'!D19 -> E9577 | B18: ='CUSTOS UNIT. SICRO e SINAPI'!A19 -> Trator agrícola sobre pneus - 77 kW | C18: 1 | D18: 0.41 | E18: 0.59 | F18: ='CUSTOS UNIT. SICRO e SINAPI'!F19 -> 159.0566 | G18: ='CUSTOS UNIT. SICRO e SINAPI'!G19 -> 62.3118 | I18: 101.9772
G19: Custo horário total de equipamentos | I19: =ROUNDDOWN(I13+I14+I15+I16+I17+I18,4) -> 1085.9436
A20: B - MÃO DE OBRA | C20: Quantidade | D20: Unidade | F20: Custo Horário | G20: Custo Horário Total
A21: ='CUSTOS UNIT. SICRO e SINAPI'!D34 -> SINAPI 88316 | B21: ='CUSTOS UNIT. SICRO e SINAPI'!A34 -> SERVENTE COM ENCARGOS COMPLEMENTARES | C21: 1 | D21: h | F21: ='CUSTOS UNIT. SICRO e SINAPI'!F34 -> 24.37 | I21: =ROUND(C21*F21,4) -> 24.37
C22: Custo horário total de mão de obra | I22: =SUM(I21) -> 24.37
C23: Custo horário total de execução | I23: =ROUNDDOWN(I19+I22,4) -> 1110.3136
C24: Custo unitário de execução | I24: =ROUNDUP(I23/H9,4) -> 8.2515
G25: Custo do FIC | I25: =ROUND(I24*H8,4) -> 0.1176
G26: Custo do FIT | I26: -
A27: C - MATERIAL | C27: Quantidade | D27: Unidade | F27: Preço Unitário | G27: Custo Unitário
C28: Custo unitário total de material
A29: D - ATIVIDADES AUXILIARES | C29: Quantidade | D29: Unidade | F29: Custo Unitário | G29: Custo Unitário
A30: ='CUSTOS UNIT. SICRO e SINAPI'!D10 -> 4016096 | B30: ='CUSTOS UNIT. SICRO e SINAPI'!A10 -> Escavação e carga de material de jazida com escavadeira hidráulica de 1,56 m³ | C30: 1.10027 | D30: m³ | F30: ='CUSTOS UNIT. SICRO e SINAPI'!F10 -> 1.48 | I30: =ROUND(C30*F30,4) -> 1.6284
C31: Custo total de atividades auxiliares | I31: =ROUND(I30,4) -> 1.6284
G32: Subtotal | I32: =ROUND(I24+I25+I31,4) -> 9.9975
A33: E - TEMPO FIXO | C33: Código | D33: Quantidade | E33: Unidade | G33: Custo Unitário | H33: Custo Unitário
A34: ='CUSTOS UNIT. SICRO e SINAPI'!D11 -> 4016096 | B34: ='CUSTOS UNIT. SICRO e SINAPI'!A11 -> Escavação e carga de material de jazida com escavadeira hidráulica de 1,56 m³ - Caminhão basculante 10 m³ | C34: 5914354 | D34: 2.06301 | E34: t | G34: ='CUSTOS UNIT. SICRO e SINAPI'!F11 -> 1.82 | I34: =ROUND(D34*G34,4) -> 3.7547
C35: Custo unitário total de tempo fixo | I35: =ROUND(I34,4) -> 3.7547
A36: F - MOMENTO DE TRANSPORTE | C36: Quantidade | D36: Unidade | E36: DMT | I36: Custo Unitário
E37: LN | F37: RP | G37: P
A38: 4016096 | B38: Escavação e carga de material de jazida com escavadeira hidráulica de 1,56 m³ - Caminhão basculante 10 m³ | C38: 206301 | D38: tkm | E38: 5914359 | F38: 5914374 | G38: 5914389
C39: Custo unitário total de transporte
E40: Custo unitário direto total | I40: =TRUNC(I32+I35,2) -> 13.75
A42: CGCIT | I42: DNIT
A43: SISTEMA DE CUSTOS REFERENCIAIS DE OBRAS - SICRO | D43: Bahia | G43: FIC | H43: 0.01425
A44: Custo Unitário de Referência | D44: Abril de 2025 | G44: Produção da equipe | H44: 230.19 | I44: m³
A45: SICRO 4016096 | B45: Escavação e carga de material de jazida com escavadeira hidráulica de 1,56 m³ | H45: Valores em reais (R$)
A46: A - EQUIPAMENTOS | C46: Quantidade | D46: Utilização | F46: Custo Horário | I46: Custo
D47: Operativa | E47: Improdutiva | F47: Produtivo | G47: Improdutivo | I47: Horário Total
A48: ='CUSTOS UNIT. SICRO e SINAPI'!D13 -> E9515 | B48: ='CUSTOS UNIT. SICRO e SINAPI'!A13 -> Escavadeira hidráulica sobre esteiras com caçamba com capacidade de 1,56 m³ - 118 Kw | C48: 1 | D48: 1 | E48: 0 | F48: ='CUSTOS UNIT. SICRO e SINAPI'!F13 -> 312.4121 | G48: ='CUSTOS UNIT. SICRO e SINAPI'!G13 -> 145.5854 | I48: =ROUND(((D48*F48)+(E48*G48))*C48,4) -> 312.4121
G49: Custo horário total de equipamentos | I49: =ROUND(I48,4) -> 312.4121
A50: B - MÃO DE OBRA | C50: Quantidade | D50: Unidade | F50: Custo Horário | G50: Custo Horário Total
A51: ='CUSTOS UNIT. SICRO e SINAPI'!D34 -> SINAPI 88316 | B51: ='CUSTOS UNIT. SICRO e SINAPI'!A34 -> SERVENTE COM ENCARGOS COMPLEMENTARES | C51: 1 | D51: h | F51: ='CUSTOS UNIT. SICRO e SINAPI'!F34 -> 24.37 | I51: =ROUND(C51*F51,4) -> 24.37
C52: Custo horário total de mão de obra | I52: =ROUND(I51,4) -> 24.37
C53: Custo horário total de execução | I53: =ROUND(I49+I52,4) -> 336.7821
C54: Custo unitário de execução | I54: =ROUNDDOWN(I53/H44,4) -> 1.463
G55: Custo do FIC | I55: =ROUNDUP(I54*H43,4) -> 0.0209
G56: Custo do FIT | I56: -
A57: C - MATERIAL | C57: Quantidade | D57: Unidade | F57: Preço Unitário | G57: Custo Unitário
C58: Custo unitário total de material
A59: D - ATIVIDADES AUXILIARES | C59: Quantidade | D59: Unidade | F59: Custo Unitário | G59: Custo Unitário
C60: Custo total de atividades auxiliares
G61: Subtotal | I61: =ROUND(I54+I55,4) -> 1.4839
A62: E - TEMPO FIXO | C62: Código | D62: Quantidade | E62: Unidade | G62: Custo Unitário | H62: Custo Unitário
C63: Custo unitário total de tempo fixo
A64: F - MOMENTO DE TRANSPORTE | C64: Quantidade | D64: Unidade | E64: DMT | I64: Custo Unitário
E65: LN | F65: RP | G65: P
C66: Custo unitário total de transporte
E67: Custo unitário direto total | I67: =TRUNC(I61,2) -> 1.48
A69: CGCIT | I69: DNIT
A70: SISTEMA DE CUSTOS REFERENCIAIS DE OBRAS - SICRO | D70: Bahia | G70: FIC | H70: 0.01425
A71: Custo Unitário de Referência | D71: Abril de 2025 | G71: Produção da equipe | H71: 404.92 | I71: m²
A72: ADAPTADO DE SICRO 5502985 | B72: Limpeza mecanizada da camada vegetal com retroescavadeira de pneus com capacidade de 0,76 m³ e da retroescavadeira de 0,29 m³ - 58 Kw | H72: Valores em reais (R$)
A73: A - EQUIPAMENTOS | C73: Quantidade | D73: Utilização | F73: Custo Horário | I73: Custo
D74: Operativa | E74: Improdutiva | F74: Produtivo | G74: Improdutivo | I74: Horário Total
A75: ='CUSTOS UNIT. SICRO e SINAPI'!D16 -> E9526 | B75: ='CUSTOS UNIT. SICRO e SINAPI'!A16 -> Retroescavadeira de pneus com capacidade de 0,76 m³ e da retroescavadeira de 0,29 m³- 58 Kw | C75: 1 | D75: 1 | E75: 0 | F75: ='CUSTOS UNIT. SICRO e SINAPI'!F16 -> 157.8623 | G75: ='CUSTOS UNIT. SICRO e SINAPI'!G16 -> 83.056 | I75: =(((D75*F75)+(E75*G75))*C75) -> 157.8623
G76: Custo horário total de equipamentos | I76: =SUM(I75) -> 157.8623
A77: B - MÃO DE OBRA | C77: Quantidade | D77: Unidade | F77: Custo Horário | G77: Custo Horário Total
A78: ='CUSTOS UNIT. SICRO e SINAPI'!D34 -> SINAPI 88316 | B78: ='CUSTOS UNIT. SICRO e SINAPI'!A34 -> SERVENTE COM ENCARGOS COMPLEMENTARES | C78: 1 | D78: h | F78: ='CUSTOS UNIT. SICRO e SINAPI'!F34 -> 24.37 | I78: =C78*F78 -> 24.37
C79: Custo horário total de mão de obra | I79: =SUM(I78) -> 24.37
C80: Custo horário total de execução | I80: =SUM(I76,I79) -> 182.2323
C81: Custo unitário de execução | I81: =I80/H71 -> 0.4500451941
G82: Custo do FIC | I82: =ROUNDDOWN(I81*H70,4) -> 0.0064
G83: Custo do FIT | I83: -
A84: C - MATERIAL | C84: Quantidade | D84: Unidade | F84: Preço Unitário | G84: Custo Unitário
C85: Custo unitário total de material
A86: D - ATIVIDADES AUXILIARES | C86: Quantidade | D86: Unidade | F86: Custo Unitário | G86: Custo Unitário
C87: Custo total de atividades auxiliares
G88: Subtotal | I88: =ROUNDUP(I81+I82,4) -> 0.4565
A89: E - TEMPO FIXO | C89: Código | D89: Quantidade | E89: Unidade | G89: Custo Unitário | H89: Custo Unitário
C90: Custo unitário total de tempo fixo
A91: F - MOMENTO DE TRANSPORTE | C91: Quantidade | D91: Unidade | E91: DMT | I91: Custo Unitário
E92: LN | F92: RP | G92: P
C93: Custo unitário total de transporte
E94: Custo unitário direto total | I94: =TRUNC(I88,2) -> 0.45
A96: CGCIT | I96: DNIT
A97: SISTEMA DE CUSTOS REFERENCIAIS DE OBRAS - SICRO | D97: Bahia | G97: FIC | H97: 0.01425
A98: Custo Unitário de Referência | D98: Abril de 2025 | G98: Produção da equipe | H98: 348.6 | I98: tkm
A99: SICRO 5901639 | B99: Transporte com caminhão basculante com caçamba estanque com capacidade de 14 m³ - rodovia em leito natural | H99: Valores em reais (R$)
A100: A - EQUIPAMENTOS | C100: Quantidade | D100: Utilização | F100: Custo Horário | I100: Custo
D101: Operativa | E101: Improdutiva | F101: Produtivo | G101: Improdutivo | I101: Horário Total
A102: ='CUSTOS UNIT. SICRO e SINAPI'!D6 -> E9575 | B102: ='CUSTOS UNIT. SICRO e SINAPI'!A6 -> Caminhão basculante com caçamba estanque com capacidade de 14 m³ - 210 Kw | C102: 1 | D102: 1 | E102: 0 | F102: ='CUSTOS UNIT. SICRO e SINAPI'!F6 -> 314.3213 | G102: ='CUSTOS UNIT. SICRO e SINAPI'!G6 -> 95.7329 | I102: =(((D102*F102)+(E102*G102))*C102) -> 314.3213
G103: Custo horário total de equipamentos | I103: =SUM(I102) -> 314.3213
A104: B - MÃO DE OBRA | C104: Quantidade | D104: Unidade | F104: Custo Horário | G104: Custo Horário Total
C105: Custo horário total de mão de obra
C106: Custo horário total de execução | I106: =I103 -> 314.3213
C107: Custo unitário de execução | I107: =I106/H98 -> 0.9016675273
G108: Custo do FIC | I108: =ROUNDUP(I107*H97,4) -> 0.0129
G109: Custo do FIT | I109: -
A110: C - MATERIAL | C110: Quantidade | D110: Unidade | F110: Preço Unitário | G110: Custo Unitário
C111: Custo unitário total de material
A112: D - ATIVIDADES AUXILIARES | C112: Quantidade | D112: Unidade | F112: Custo Unitário | G112: Custo Unitário
C113: Custo total de atividades auxiliares
G114: Subtotal | I114: =SUM(I107:I108) -> 0.9145675273
A115: E - TEMPO FIXO | C115: Código | D115: Quantidade | E115: Unidade | G115: Custo Unitário | H115: Custo Unitário
C116: Custo unitário total de tempo fixo
A117: F - MOMENTO DE TRANSPORTE | C117: Quantidade | D117: Unidade | E117: DMT | I117: Custo Unitário
E118: LN | F118: RP | G118: P
C119: Custo unitário total de transporte
E120: Custo unitário direto total | I120: =TRUNC(I114,2) -> 0.91
A122: CGCIT | I122: DNIT
A123: SISTEMA DE CUSTOS REFERENCIAIS DE OBRAS - SICRO | D123: Bahia | G123: FIC
A124: Custo Unitário de Referência | D124: Abril de 2025 | G124: Produção da equipe | H124: 470.61 | I124: tkm
A125: SICRO 5901640 | B125: Transporte com caminhão basculante com caçamba estanque com capacidade de 14 m³ - rodovia pavimentada | H125: Valores em reais (R$)
A126: A - EQUIPAMENTOS | C126: Quantidade | D126: Utilização | F126: Custo Horário | I126: Custo
D127: Operativa | E127: Improdutiva | F127: Produtivo | G127: Improdutivo | I127: Horário Total
A128: ='CUSTOS UNIT. SICRO e SINAPI'!D6 -> E9575 | B128: ='CUSTOS UNIT. SICRO e SINAPI'!A6 -> Caminhão basculante com caçamba estanque com capacidade de 14 m³ - 210 Kw | C128: 1 | D128: 1 | E128: 0 | F128: ='CUSTOS UNIT. SICRO e SINAPI'!F6 -> 314.3213 | G128: ='CUSTOS UNIT. SICRO e SINAPI'!G6 -> 95.7329 | I128: =(((D128*F128)+(E128*G128))*C128) -> 314.3213
G129: Custo horário total de equipamentos | I129: =SUM(I128) -> 314.3213
A130: B - MÃO DE OBRA | C130: Quantidade | D130: Unidade | F130: Custo Horário | G130: Custo Horário Total
C131: Custo horário total de mão de obra
C132: Custo horário total de execução | I132: =I129 -> 314.3213
C133: Custo unitário de execução | I133: =I132/H124 -> 0.667901872
G134: Custo do FIC | I134: =ROUNDUP(I133*H123,4) -> 0
G135: Custo do FIT | I135: -
A136: C - MATERIAL | C136: Quantidade | D136: Unidade | F136: Preço Unitário | G136: Custo Unitário
C137: Custo unitário total de material
A138: D - ATIVIDADES AUXILIARES | C138: Quantidade | D138: Unidade | F138: Custo Unitário | G138: Custo Unitário
C139: Custo total de atividades auxiliares
G140: Subtotal | I140: =SUM(I133:I134) -> 0.667901872
A141: E - TEMPO FIXO | C141: Código | D141: Quantidade | E141: Unidade | G141: Custo Unitário | H141: Custo Unitário
C142: Custo unitário total de tempo fixo
A143: F - MOMENTO DE TRANSPORTE | C143: Quantidade | D143: Unidade | E143: DMT | I143: Custo Unitário
E144: LN | F144: RP | G144: P
C145: Custo unitário total de transporte
E146: Custo unitário direto total | I146: =TRUNC(I140,2) -> 0.66
A148: CGCIT | I148: DNIT
A149: SISTEMA DE CUSTOS REFERENCIAIS DE OBRAS - SICRO | D149: Bahia | G149: FIC | H149: 0.01425
A150: Custo Unitário de Referência | D150: Abril de 2025 | G150: Produção da equipe | H150: 669.81 | I150: tkm
A151: SICRO 5914639 | B151: Transporte com cavalo mecânico com semirreboque com capacidade de 32 t - rodovia em revestimento primário | H151: Valores em reais (R$)
A152: A - EQUIPAMENTOS | C152: Quantidade | D152: Utilização | F152: Custo Horário | I152: Custo
D153: Operativa | E153: Improdutiva | F153: Produtivo | G153: Improdutivo | I153: Horário Total
A154: ='CUSTOS UNIT. SICRO e SINAPI'!D9 -> E9666 | B154: ='CUSTOS UNIT. SICRO e SINAPI'!A9 -> Cavalo mecânico com semirreboque com capacidade de 32 t - 302 kW | C154: 1 | D154: 1 | E154: 0 | F154: ='CUSTOS UNIT. SICRO e SINAPI'!F9 -> 458.2397 | G154: ='CUSTOS UNIT. SICRO e SINAPI'!G9 -> 140.5607 | I154: =(((D154*F154)+(E154*G154))*C154) -> 458.2397
G155: Custo horário total de equipamentos | I155: =SUM(I154) -> 458.2397
A156: B - MÃO DE OBRA | C156: Quantidade | D156: Unidade | F156: Custo Horário | G156: Custo Horário Total
C157: Custo horário total de mão de obra
C158: Custo horário total de execução | I158: =I155 -> 458.2397
C159: Custo unitário de execução | I159: =I158/H150 -> 0.6841338589
G160: Custo do FIC | I160: =ROUNDDOWN(I159*H149,4) -> 0.0097
G161: Custo do FIT | I161: -
A162: C - MATERIAL | C162: Quantidade | D162: Unidade | F162: Preço Unitário | G162: Custo Unitário
C163: Custo unitário total de material
A164: D - ATIVIDADES AUXILIARES | C164: Quantidade | D164: Unidade | F164: Custo Unitário | G164: Custo Unitário
C165: Custo total de atividades auxiliares
G166: Subtotal | I166: =SUM(I159,I160) -> 0.6938338589
A167: E - TEMPO FIXO | C167: Código | D167: Quantidade | E167: Unidade | G167: Custo Unitário | H167: Custo Unitário
C168: Custo unitário total de tempo fixo
A169: F - MOMENTO DE TRANSPORTE | C169: Quantidade | D169: Unidade | E169: DMT | I169: Custo Unitário
E170: LN | F170: RP | G170: P
C171: Custo unitário total de transporte
E172: Custo unitário direto total | I172: =TRUNC(I166,2) -> 0.69
A174: CGCIT | I174: DNIT
A175: SISTEMA DE CUSTOS REFERENCIAIS DE OBRAS - SICRO | D175: Bahia | G175: FIC | H175: 0
A176: Custo Unitário de Referência | D176: Abril de 2025 | G176: Produção da equipe | H176: 803.77 | I176: tkm
A177: SICRO 5914640 | B177: Transporte com cavalo mecânico com semirreboque com capacidade de 32 t - rodovia pavimentada | H177: Valores em reais (R$)
A178: A - EQUIPAMENTOS | C178: Quantidade | D178: Utilização | F178: Custo Horário | I178: Custo
D179: Operativa | E179: Improdutiva | F179: Produtivo | G179: Improdutivo | I179: Horário Total
A180: ='CUSTOS UNIT. SICRO e SINAPI'!D9 -> E9666 | B180: ='CUSTOS UNIT. SICRO e SINAPI'!A9 -> Cavalo mecânico com semirreboque com capacidade de 32 t - 302 kW | C180: 1 | D180: 1 | E180: 0 | F180: ='CUSTOS UNIT. SICRO e SINAPI'!F9 -> 458.2397 | G180: ='CUSTOS UNIT. SICRO e SINAPI'!G9 -> 140.5607 | I180: =(((D180*F180)+(E180*G180))*C180) -> 458.2397
G181: Custo horário total de equipamentos | I181: =SUM(I180) -> 458.2397
A182: B - MÃO DE OBRA | C182: Quantidade | D182: Unidade | F182: Custo Horário | G182: Custo Horário Total
C183: Custo horário total de mão de obra
C184: Custo horário total de execução | I184: =I181 -> 458.2397
C185: Custo unitário de execução | I185: =I184/H176 -> 0.5701129676
G186: Custo do FIC | I186: =ROUNDUP(I185*H175,4) -> 0
G187: Custo do FIT | I187: -
A188: C - MATERIAL | C188: Quantidade | D188: Unidade | F188: Preço Unitário | G188: Custo Unitário
C189: Custo unitário total de material
A190: D - ATIVIDADES AUXILIARES | C190: Quantidade | D190: Unidade | F190: Custo Unitário | G190: Custo Unitário
C191: Custo total de atividades auxiliares
G192: Subtotal | I192: =SUM(I185,I186) -> 0.5701129676
A193: E - TEMPO FIXO | C193: Código | D193: Quantidade | E193: Unidade | G193: Custo Unitário | H193: Custo Unitário
C194: Custo unitário total de tempo fixo
A195: F - MOMENTO DE TRANSPORTE | C195: Quantidade | D195: Unidade | E195: DMT | I195: Custo Unitário
E196: LN | F196: RP | G196: P
C197: Custo unitário total de transporte
E198: Custo unitário direto total | I198: =TRUNC(I192,2) -> 0.57
A200: CGCIT | I200: DNIT
A201: SISTEMA DE CUSTOS REFERENCIAIS DE OBRAS - SICRO | D201: Bahia | G201: FIC | H201: 0.01425
A202: Custo Unitário de Referência | D202: Abril de 2025 | G202: Produção da equipe | H202: 672.8 | I202: m²
A203: SICRO 4011209 | B203: Regularização do subleito - 100% Proctor intermediário | H203: Valores em reais (R$)
A204: A - EQUIPAMENTOS | C204: Quantidade | D204: Utilização | F204: Custo Horário | I204: Custo
D205: Operativa | E205: Improdutiva | F205: Produtivo | G205: Improdutivo | I205: Horário Total
A206: ='CUSTOS UNIT. SICRO e SINAPI'!D8 -> E9571 | B206: ='CUSTOS UNIT. SICRO e SINAPI'!A8 -> Caminhão tanque com capacidade de 10.000 l - 188 kW | C206: 1 | D206: 0.61 | E206: 0.39 | F206: ='CUSTOS UNIT. SICRO e SINAPI'!F8 -> 331.9819 | G206: ='CUSTOS UNIT. SICRO e SINAPI'!G8 -> 87.6603 | I206: =(((D206*F206)+(E206*G206))*C206) -> 236.696476
A207: ='CUSTOS UNIT. SICRO e SINAPI'!D14 -> E9518 | B207: ='CUSTOS UNIT. SICRO e SINAPI'!A14 -> Grade de 24 discos rebocável de D = 60 cm (24") | C207: 1 | D207: 0.41 | E207: 0.59 | F207: ='CUSTOS UNIT. SICRO e SINAPI'!F14 -> 5.0245 | G207: ='CUSTOS UNIT. SICRO e SINAPI'!G14 -> 3.499 | I207: 4.124455
A208: ='CUSTOS UNIT. SICRO e SINAPI'!D15 -> E9524 | B208: ='CUSTOS UNIT. SICRO e SINAPI'!A15 -> Motoniveladora - 93 kW | C208: 1 | D208: 0.43 | E208: 0.57 | F208: ='CUSTOS UNIT. SICRO e SINAPI'!F15 -> 287.6661 | G208: ='CUSTOS UNIT. SICRO e SINAPI'!G15 -> 128.1841 | I208: 196.76136
A209: ='CUSTOS UNIT. SICRO e SINAPI'!D17 -> E9762 | B209: ='CUSTOS UNIT. SICRO e SINAPI'!A17 -> Rolo compactador de pneus autopropelido de 27 t - 85 kW | C209: 1 | D209: 0.96 | E209: 0.04 | F209: ='CUSTOS UNIT. SICRO e SINAPI'!F17 -> 262.6866 | G209: ='CUSTOS UNIT. SICRO e SINAPI'!G17 -> 131.0659 | I209: 257.421772
... 21 more rows

Sheet COMPOSIÇÕES SINAPI
D1: MINISTÉRIO DA INTEGRAÇÃO E DO DESENVOLVIMENTO REGIONAL
D2: COMPANHIA DE DESENVOLVIMENTO DOS VALES DO SÃO FRANCISCO E DO PARNAÍBA
D3: 2ª SUPERINTENDÊNCIA REGIONAL
A5: ANEXO 4 - PLANILHA COMPOSIÇÕES DE CUSTOS - SINAPI BAHIA JULHO DE 2025
A7: OBJETO: CONTRATAÇÃO DE OBRAS E SERVIÇOS DE ENGENHARIA PARA REGULARIZAÇÃO DE SUBLEITO E EXECUÇÃO DE REVESTIMENTO PRIMÁRIO NA ESTRADA DA IPUEIRA, MUNICÍPIO DE SERRA DO RAMALHO, NA ÁREA DE ABRANGÊNCIA DA 2ª SUPERINTENDÊNCIA REGIONAL DA CODEVASF, NO ESTADO DA BAHIA.
A9: BASE: | B9: SINAPI BAHIA - JULHO DE 2025 | F9: NÃO DESONERADO
A11: CPU-01 | B11: CODEVASF | C11: SEM | D11: ADMINISTRAÇÃO LOCAL | E11: % | F11: QUANTITATIVO | G11: CUSTO UNITÁRIO | H11: CUSTO TOTAL (R$)
A12: COMPOSICAO | B12: SINAPI | C12: ='CUSTOS UNIT. SICRO e SINAPI'!D26 -> SINAPI 90776 | D12: ='CUSTOS UNIT. SICRO e SINAPI'!A26 -> ENCARREGADO GERAL COM ENCARGOS COMPLEMENTARES | E12: ='CUSTOS UNIT. SICRO e SINAPI'!E26 -> H | F12: =8*24 -> 192 | G12: ='CUSTOS UNIT. SICRO e SINAPI'!F26 -> 40.87 | H12: =F12*G12 -> 7847.04
A13: COMPOSICAO | B13: SINAPI | C13: ='CUSTOS UNIT. SICRO e SINAPI'!D27 -> SINAPI 90777 | D13: ='CUSTOS UNIT. SICRO e SINAPI'!A27 -> ENGENHEIRO CIVIL DE OBRA JUNIOR COM ENCARGOS COMPLEMENTARES | E13: ='CUSTOS UNIT. SICRO e SINAPI'!E27 -> H | F13: =8*6 -> 48 | G13: ='CUSTOS UNIT. SICRO e SINAPI'!F27 -> 130.58 | H13: 6267.84
E14: CUSTO TOTAL | H14: =TRUNC(SUM(H12:H13),2) -> 14114.88
A16: CPU-02 | B16: CODEVASF | C16: SEM | D16: PLACA DE OBRA EM CHAPA DE AÇO GALVANIZADO (1,80 M * 3,60 M) | E16: m² | F16: QUANTITATIVO | G16: CUSTO UNITÁRIO | H16: CUSTO TOTAL (R$)
A17: INSUMO | B17: SINAPI | C17: ='CUSTOS UNIT. SICRO e SINAPI'!D32 -> SINAPI 5075 | D17: ='CUSTOS UNIT. SICRO e SINAPI'!A32 -> PREGO DE ACO POLIDO COM CABECA 18 X 30 (2 3/4 X 10) | E17: ='CUSTOS UNIT. SICRO e SINAPI'!E32 -> KG | F17: 0.11 | G17: ='CUSTOS UNIT. SICRO e SINAPI'!F32 -> 17.34 | H17: 1.9074
A18: INSUMO | B18: SINAPI | C18: ='CUSTOS UNIT. SICRO e SINAPI'!D31 -> SINAPI 4491 | D18: ='CUSTOS UNIT. SICRO e SINAPI'!A31 -> PONTALETE *7,5 X 7,5* CM EM PINUS, MISTA OU EQUIVALENTE DA REGIAO - BRUTA | E18: ='CUSTOS UNIT. SICRO e SINAPI'!E31 -> M | F18: 4 | G18: ='CUSTOS UNIT. SICRO e SINAPI'!F31 -> 9.59 | H18: 38.36
A19: INSUMO | B19: SINAPI | C19: ='CUSTOS UNIT. SICRO e SINAPI'!D33 -> SINAPI 4417 | D19: ='CUSTOS UNIT. SICRO e SINAPI'!A33 -> SARRAFO NAO APARELHADO *2,5 X 7* CM, EM MACARANDUBA, ANGELIM OU EQUIVALENTE DA REGIAO - BRUTA | E19: ='CUSTOS UNIT. SICRO e SINAPI'!E33 -> M | F19: 1 | G19: ='CUSTOS UNIT. SICRO e SINAPI'!F33 -> 7.24 | H19: 7.24
A20: INSUMO | B20: SINAPI | C20: ='CUSTOS UNIT. SICRO e SINAPI'!D30 -> SINAPI 4813 | D20: ='CUSTOS UNIT. SICRO e SINAPI'!A30 -> PLACA DE OBRA (PARA CONSTRUCAO CIVIL) EM CHAPA GALVANIZADA *N. 22*, ADESIVADA, DE *2,4 X 1,2* M (SEM POSTES PARA FIXACAO) | E20: ='CUSTOS UNIT. SICRO e SINAPI'!E30 -> M² | F20: 1 | G20: ='CUSTOS UNIT. SICRO e SINAPI'!F30 -> 377.5 | H20: 377.5
A21: INSUMO | B21: SINAPI | C21: ='CUSTOS UNIT. SICRO e SINAPI'!D21 -> SINAPI 370 | D21: ='CUSTOS UNIT. SICRO e SINAPI'!A21 -> AREIA MEDIA - POSTO JAZIDA/FORNECEDOR (RETIRADO NA JAZIDA, SEM TRANSPORTE) | E21: ='CUSTOS UNIT. SICRO e SINAPI'!E21 -> M³ | F21: 0.0049 | G21: ='CUSTOS UNIT. SICRO e SINAPI'!F21 -> 139.91 | H21: 0.685559
A22: INSUMO | B22: SINAPI | C22: ='CUSTOS UNIT. SICRO e SINAPI'!D25 -> SINAPI 1379 | D22: ='CUSTOS UNIT. SICRO e SINAPI'!A25 -> CIMENTO PORTLAND COMPOSTO CP II-32 | E22: ='CUSTOS UNIT. SICRO e SINAPI'!E25 -> KG | F22: 1.5 | G22: ='CUSTOS UNIT. SICRO e SINAPI'!F25 -> 0.8 | H22: 1.2
A23: INSUMO | B23: SINAPI | C23: ='CUSTOS UNIT. SICRO e SINAPI'!D29 -> SINAPI 4718 | D23: ='CUSTOS UNIT. SICRO e SINAPI'!A29 -> PEDRA BRITADA N. 2 (19 A 38 MM) POSTO PEDREIRA/FORNECEDOR, SEM FRETE | E23: ='CUSTOS UNIT. SICRO e SINAPI'!E29 -> M³ | F23: 0.0098 | G23: ='CUSTOS UNIT. SICRO e SINAPI'!F29 -> 116.7 | H23: 1.14366
A24: COMPOSIÇÃO | B24: SINAPI | C24: ='CUSTOS UNIT. SICRO e SINAPI'!D22 -> SINAPI 87445 | D24: ='CUSTOS UNIT. SICRO e SINAPI'!A22 -> BETONEIRA CAPACIDADE NOMINAL 400 L, CAPACIDADE DE MISTURA 310 L, MOTOR A DIESEL POTÊNCIA 5,0 HP, SEM CARREGADOR - CHP DIURNO. AF_06/2014 | E24: ='CUSTOS UNIT. SICRO e SINAPI'!E22 -> H | F24: 0.0065 | G24: ='CUSTOS UNIT. SICRO e SINAPI'!F22 -> 5.34 | H24: 0.03471
A25: COMPOSIÇÃO | B25: SINAPI | C25: ='CUSTOS UNIT. SICRO e SINAPI'!D24 -> SINAPI 88262 | D25: ='CUSTOS UNIT. SICRO e SINAPI'!A24 -> CARPINTEIRO DE FORMAS COM ENCARGOS COMPLEMENTARES | E25: ='CUSTOS UNIT. SICRO e SINAPI'!E24 -> H | F25: 1 | G25: ='CUSTOS UNIT. SICRO e SINAPI'!F24 -> 33.07 | H25: 33.07
A26: COMPOSIÇÃO | B26: SINAPI | C26: ='CUSTOS UNIT. SICRO e SINAPI'!D34 -> SINAPI 88316 | D26: ='CUSTOS UNIT. SICRO e SINAPI'!A34 -> SERVENTE COM ENCARGOS COMPLEMENTARES | E26: ='CUSTOS UNIT. SICRO e SINAPI'!E34 -> H | F26: 2.06 | G26: ='CUSTOS UNIT. SICRO e SINAPI'!F34 -> 24.37 | H26: 50.2022
E27: CUSTO TOTAL | H27: =TRUNC(SUM(H17:H26),2) -> 511.34

Sheet CUSTOS UNIT. SICRO e SINAPI
A1: ANEXO 4 - CUSTOS UNITÁRIOS DE INSUMOS E SERVIÇOS PARA COMPOSIÇÕES DE PREÇOS - SICRO BAHIA E SINAPI BAHIA
A3: OBJETO: CONTRATAÇÃO DE OBRAS E SERVIÇOS DE ENGENHARIA PARA REGULARIZAÇÃO DE SUBLEITO E EXECUÇÃO DE REVESTIMENTO PRIMÁRIO NA ESTRADA DA IPUEIRA, MUNICÍPIO DE SERRA DO RAMALHO, NA ÁREA DE ABRANGÊNCIA DA 2ª SUPERINTENDÊNCIA REGIONAL DA CODEVASF, NO ESTADO DA BAHIA.
A5: ESPECIFICAÇÃO DO ITEM DA COMPOSIÇÃO - SICRO BAHIA | B5: FONTE | C5: MÊS/ANO DE REFERÊNCIA | D5: CÓDIGO | E5: UNIDADE | F5: CUSTO UNITÁRIO PRODUTIVO | G5: CUSTO UNITÁRIO IMPRODUTIVO
A6: Caminhão basculante com caçamba estanque com capacidade de 14 m³ - 210 Kw | B6: SICRO BAHIA | C6: ABRIL/2025 | D6: E9575 | E6: HORA | F6: 314.3213 | G6: 95.7329
A7: Caminhão carroceria com capacidade de 5 t - 120 kW | B7: SICRO BAHIA | C7: ABRIL/2025 | D7: E9687 | E7: HORA | F7: 157.5975 | G7: 64.0743
A8: Caminhão tanque com capacidade de 10.000 l - 188 kW | B8: SICRO BAHIA | C8: ABRIL/2025 | D8: E9571 | E8: HORA | F8: 331.9819 | G8: 87.6603
A9: Cavalo mecânico com semirreboque com capacidade de 32 t - 302 kW | B9: SICRO BAHIA | C9: ABRIL/2025 | D9: E9666 | E9: HORA | F9: 458.2397 | G9: 140.5607
A10: Escavação e carga de material de jazida com escavadeira hidráulica de 1,56 m³ | B10: SICRO BAHIA | C10: ABRIL/2025 | D10: 4016096 | E10: M³ | F10: 1.48
A11: Escavação e carga de material de jazida com escavadeira hidráulica de 1,56 m³ - Caminhão basculante 10 m³ | B11: SICRO BAHIA | C11: ABRIL/2025 | D11: 4016096 | E11: T | F11: 1.82
A12: Escavação manual em material de 1ª categoria na profundidade de até 1 m | B12: SICRO BAHIA | C12: ABRIL/2025 | D12: 4805750 | E12: M³ | F12: 45.71
A13: Escavadeira hidráulica sobre esteiras com caçamba com capacidade de 1,56 m³ - 118 Kw | B13: SICRO BAHIA | C13: ABRIL/2025 | D13: E9515 | E13: HORA | F13: 312.4121 | G13: 145.5854
A14: Grade de 24 discos rebocável de D = 60 cm (24") | B14: SICRO BAHIA | C14: ABRIL/2025 | D14: E9518 | E14: HORA | F14: 5.0245 | G14: 3.499
A15: Motoniveladora - 93 kW | B15: SICRO BAHIA | C15: ABRIL/2025 | D15: E9524 | E15: HORA | F15: 287.6661 | G15: 128.1841
A16: Retroescavadeira de pneus com capacidade de 0,76 m³ e da retroescavadeira de 0,29 m³- 58 Kw | B16: SICRO BAHIA | C16: ABRIL/2025 | D16: E9526 | E16: HORA | F16: 157.8623 | G16: 83.056
A17: Rolo compactador de pneus autopropelido de 27 t - 85 kW | B17: SICRO BAHIA | C17: ABRIL/2025 | D17: E9762 | E17: HORA | F17: 262.6866 | G17: 131.0659
A18: Rolo compactador pé de carneiro vibratório autopropelido por pneus de 11,6 t - 82 kW | B18: SICRO BAHIA | C18: ABRIL/2025 | D18: E9685 | E18: HORA | F18: 231.6833 | G18: 107.4007
A19: Trator agrícola sobre pneus - 77 kW | B19: SICRO BAHIA | C19: ABRIL/2025 | D19: E9577 | E19: HORA | F19: 159.0566 | G19: 62.3118
A20: ESPECIFICAÇÃO DO ITEM DA COMPOSIÇÃO - SINAPI BAHIA | B20: FONTE | C20: MÊS/ANO DE REFERÊNCIA | D20: CÓDIGO | E20: UNIDADE | F20: CUSTO UNITÁRIO PRODUTIVO | G20: VALOR UNITÁRIO IMPRODUTIVO
A21: AREIA MEDIA - POSTO JAZIDA/FORNECEDOR (RETIRADO NA JAZIDA, SEM TRANSPORTE) | B21: SINAPI BAHIA | C21: JULHO/2025 | D21: SINAPI 370 | E21: M³ | F21: 139.91
A22: BETONEIRA CAPACIDADE NOMINAL 400 L, CAPACIDADE DE MISTURA 310 L, MOTOR A DIESEL POTÊNCIA 5,0 HP, SEM CARREGADOR - CHP DIURNO. AF_06/2014 | B22: SINAPI BAHIA | C22: JULHO/2025 | D22: SINAPI 87445 | E22: H | F22: 5.34
A23: CAMINHONETE CABINE SIMPLES COM MOTOR 1.6 FLEX, CÂMBIO MANUAL, POTÊNCIA 101/104 CV, 2 PORTAS - MATERIAIS NA OPERAÇÃO. AF_11/2015 | B23: SINAPI BAHIA | C23: JULHO/2025 | D23: SINAPI 92144 | E23: H | F23: 41.21
A24: CARPINTEIRO DE FORMAS COM ENCARGOS COMPLEMENTARES | B24: SINAPI BAHIA | C24: JULHO/2025 | D24: SINAPI 88262 | E24: H | F24: 33.07
A25: CIMENTO PORTLAND COMPOSTO CP II-32 | B25: SINAPI BAHIA | C25: JULHO/2025 | D25: SINAPI 1379 | E25: KG | F25: 0.8
A26: ENCARREGADO GERAL COM ENCARGOS COMPLEMENTARES | B26: SINAPI BAHIA | C26: JULHO/2025 | D26: SINAPI 90776 | E26: H | F26: 40.87
A27: ENGENHEIRO CIVIL DE OBRA JUNIOR COM ENCARGOS COMPLEMENTARES | B27: SINAPI BAHIA | C27: JULHO/2025 | D27: SINAPI 90777 | E27: H | F27: 130.58
A28: OLEO DIESEL COMBUSTIVEL COMUM METROPOLITANO S-10 OU S-500 | B28: SINAPI BAHIA | C28: JULHO/2025 | D28: SINAPI 4221 | E28: L | F28: 5.91
A29: PEDRA BRITADA N. 2 (19 A 38 MM) POSTO PEDREIRA/FORNECEDOR, SEM FRETE | B29: SINAPI BAHIA | C29: JULHO/2025 | D29: SINAPI 4718 | E29: M³ | F29: 116.7
A30: PLACA DE OBRA (PARA CONSTRUCAO CIVIL) EM CHAPA GALVANIZADA *N. 22*, ADESIVADA, DE *2,4 X 1,2* M (SEM POSTES PARA FIXACAO) | B30: SINAPI BAHIA | C30: JULHO/2025 | D30: SINAPI 4813 | E30: M² | F30: 377.5
A31: PONTALETE *7,5 X 7,5* CM EM PINUS, MISTA OU EQUIVALENTE DA REGIAO - BRUTA | B31: SINAPI BAHIA | C31: JULHO/2025 | D31: SINAPI 4491 | E31: M | F31: 9.59
A32: PREGO DE ACO POLIDO COM CABECA 18 X 30 (2 3/4 X 10) | B32: SINAPI BAHIA | C32: JULHO/2025 | D32: SINAPI 5075 | E32: KG | F32: 17.34
A33: SARRAFO NAO APARELHADO *2,5 X 7* CM, EM MACARANDUBA, ANGELIM OU EQUIVALENTE DA REGIAO - BRUTA | B33: SINAPI BAHIA | C33: JULHO/2025 | D33: SINAPI 4417 | E33: M | F33: 7.24
A34: SERVENTE COM ENCARGOS COMPLEMENTARES | B34: SINAPI BAHIA | C34: JULHO/2025 | D34: SINAPI 88316 | E34: H | F34: 24.37

Sheet Mob e Desmob OBRA asfalto
C1: MINISTÉRIO DO DESENVOLVIMENTO REGIONAL - MDR
C2: COMPANHIA DE DESENVOLVIMENTO DOS VALES DO SÃO FRANCISCO E DO PARNAÍBA
C3: 2ª SUPERINTENDÊNCIA REGIONAL - BOM JESUS DA LAPA-BA
A5: OBJETO: CONTRATAÇÃO DE OBRAS E SERVIÇOS DE ENGENHARIA PARA REGULARIZAÇÃO DE SUBLEITO E EXECUÇÃO DE REVESTIMENTO PRIMÁRIO NA ESTRADA DA IPUEIRA, MUNICÍPIO DE SERRA DO RAMALHO, NA ÁREA DE ABRANGÊNCIA DA 2ª SUPERINTENDÊNCIA REGIONAL DA CODEVASF, NO ESTADO DA BAHIA.
A7: ANEXO 4 - MEMÓRIA DE CÁLCULO DOS MOMENTOS DE TRANSPORTE PARA MOBILIZAÇÃO E DESMOBILIZAÇÃO
A10: Cidade de Origem: | C10: Bom Jesus da Lapa-BA
A12: Destino: | C12: Comunidade Ipueira - Serra do Ramalho-BA
A14: Distância Total considerada: | C14: 8 | D14: km de via asfaltada
A16: Peso das máquinas: | E16: Motoniveladora 93 KW | H16: 13.03 | I16: ton
E17: Trator de pneus 77 kw com grade niveladora | H17: 3.4 | I17: ton
E18: Rolo compactador autopropelido 27 ton | H18: 27 | I18: ton
E19: Rolo compactador pé de carneiro | H19: 22.5 | I19: ton
E20: Retroescavadeira de pneus 58 kw | H20: 7.86 | I20: ton
A22: Peso dos materiais: | E22: Materiais | H22: 3 | I22: ton
E24: Total | H24: =SUM(H16:H22) -> 76.79 | I24: ton
A27: ="Momento de transporte = "&TEXT(H24,"0,00")&" x "&TEXT(C14,"0,00")&" =>" -> Momento de transporte = 76,79 x 8,00 => | F27: =TRUNC(C14*H24,2) -> 614.32 | H27: t x km

Sheet Mob e Desmob OBRA cascalho
C1: MINISTÉRIO DO DESENVOLVIMENTO REGIONAL - MDR
C2: COMPANHIA DE DESENVOLVIMENTO DOS VALES DO SÃO FRANCISCO E DO PARNAÍBA
C3: 2ª SUPERINTENDÊNCIA REGIONAL - BOM JESUS DA LAPA-BA
A5: OBJETO: CONTRATAÇÃO DE OBRAS E SERVIÇOS DE ENGENHARIA PARA REGULARIZAÇÃO DE SUBLEITO E EXECUÇÃO DE REVESTIMENTO PRIMÁRIO NA ESTRADA DA IPUEIRA, MUNICÍPIO DE SERRA DO RAMALHO, NA ÁREA DE ABRANGÊNCIA DA 2ª SUPERINTENDÊNCIA REGIONAL DA CODEVASF, NO ESTADO DA BAHIA.
A7: ANEXO 4 - MEMÓRIA DE CÁLCULO DOS MOMENTOS DE TRANSPORTE PARA MOBILIZAÇÃO E DESMOBILIZAÇÃO
A10: Cidade de Origem: | C10: Bom Jesus da Lapa-BA
A12: Destino: | C12: Comunidade Ipueira - Serra do Ramalho-BA
A14: Distância Total considerada: | C14: 6 | D14: km de via em revestimento primário
A16: Peso das máquinas: | E16: Motoniveladora 93 KW | H16: 13.03 | I16: ton
E17: Trator de pneus 77 kw com grade niveladora | H17: 3.4 | I17: ton
E18: Rolo compactador autopropelido 27 ton | H18: 27 | I18: ton
E19: Rolo compactador pé de carneiro | H19: 22.5 | I19: ton
E20: Retroescavadeira de pneus 58 kw | H20: 7.86 | I20: ton
A22: Peso dos materiais: | E22: Materiais | H22: 3 | I22: ton
E24: Total | H24: =SUM(H16:H22) -> 76.79 | I24: ton
A27: ="Momento de transporte = "&TEXT(H24,"0,00")&" x "&TEXT(C14,"0,00")&" =>" -> Momento de transporte = 76,79 x 6,00 => | F27: =TRUNC(C14*H24,2) -> 460.74 | H27: t x km

Sheet Mob e Desmob JAZ. asfalto
C1: MINISTÉRIO DO DESENVOLVIMENTO REGIONAL - MDR
C2: COMPANHIA DE DESENVOLVIMENTO DOS VALES DO SÃO FRANCISCO E DO PARNAÍBA
C3: 2ª SUPERINTENDÊNCIA REGIONAL - BOM JESUS DA LAPA-BA
A5: OBJETO: CONTRATAÇÃO DE OBRAS E SERVIÇOS DE ENGENHARIA PARA REGULARIZAÇÃO DE SUBLEITO E EXECUÇÃO DE REVESTIMENTO PRIMÁRIO NA ESTRADA DA IPUEIRA, MUNICÍPIO DE SERRA DO RAMALHO, NA ÁREA DE ABRANGÊNCIA DA 2ª SUPERINTENDÊNCIA REGIONAL DA CODEVASF, NO ESTADO DA BAHIA.
A7: ANEXO 4 - MEMÓRIA DE CÁLCULO DOS MOMENTOS DE TRANSPORTE PARA MOBILIZAÇÃO E DESMOBILIZAÇÃO
A10: Cidade de Origem: | C10: Bom Jesus da Lapa-BA.
A12: Destino: | C12: Cascalheira do Morrão - Bom Jesus da Lapa-BA (13º11'46,3" Sul e 43º12'47,5" Oeste).
A14: Distância Total considerada: | C14: 20 | D14: km de via asfaltada
A16: Peso das máquinas: | E16: Escavadeira hidráulica 118 kw | H16: 22.2 | I16: ton
A20: Peso dos materiais: | E20: Materiais | H20: 2 | I20: ton
E22: Total | H22: =SUM(H16:H20) -> 24.2 | I22: ton
A25: ="Momento de transporte = "&TEXT(H22,"0,00")&" x "&TEXT(C14,"0,00")&" =>" -> Momento de transporte = 24,20 x 20,00 => | F25: =TRUNC(C14*H22,4) -> 484 | H25: t x km

Sheet Mob e Desmob JAZ. cascalho
C1: MINISTÉRIO DO DESENVOLVIMENTO REGIONAL - MDR
C2: COMPANHIA DE DESENVOLVIMENTO DOS VALES DO SÃO FRANCISCO E DO PARNAÍBA
C3: 2ª SUPERINTENDÊNCIA REGIONAL - BOM JESUS DA LAPA-BA
A5: OBJETO: CONTRATAÇÃO DE OBRAS E SERVIÇOS DE ENGENHARIA PARA REGULARIZAÇÃO DE SUBLEITO E EXECUÇÃO DE REVESTIMENTO PRIMÁRIO NA ESTRADA DA IPUEIRA, MUNICÍPIO DE SERRA DO RAMALHO, NA ÁREA DE ABRANGÊNCIA DA 2ª SUPERINTENDÊNCIA REGIONAL DA CODEVASF, NO ESTADO DA BAHIA.
A7: ANEXO 4 - MEMÓRIA DE CÁLCULO DOS MOMENTOS DE TRANSPORTE PARA MOBILIZAÇÃO E DESMOBILIZAÇÃO
A10: Cidade de Origem: | C10: Bom Jesus da Lapa-BA
A12: Destino: | C12: Cascalheira do Morrão - Bom Jesus da Lapa-BA (13º11'46,3" Sul e 43º12'47,5" Oeste).
A14: Distância Total considerada: | C14: 15 | D14: km de via em revestimento primário
A16: Peso das máquinas: | E16: Escavadeira hidráulica 118 kw | H16: 22.2 | I16: ton
A20: Peso dos materiais: | E20: Materiais | H20: 2 | I20: ton
E22: Total | H22: =SUM(H16:H20) -> 24.2 | I22: ton
A25: ="Momento de transporte = "&TEXT(H22,"0,00")&" x "&TEXT(C14,"0,00")&" =>" -> Momento de transporte = 24,20 x 15,00 => | F25: =TRUNC(C14*H22,4) -> 363 | H25: t x km

Sheet CROQUI JAZIDA
C1: MINISTÉRIO DO DESENVOLVIMENTO REGIONAL - MDR
C2: COMPANHIA DE DESENVOLVIMENTO DOS VALES DO SÃO FRANCISCO E DO PARNAÍBA
C3: 2ª SUPERINTENDÊNCIA REGIONAL - BOM JESUS DA LAPA-BA
A5: OBJETO: CONTRATAÇÃO DE OBRAS E SERVIÇOS DE ENGENHARIA PARA REGULARIZAÇÃO DE SUBLEITO E EXECUÇÃO DE REVESTIMENTO PRIMÁRIO NA ESTRADA DA IPUEIRA, MUNICÍPIO DE SERRA DO RAMALHO, NA ÁREA DE ABRANGÊNCIA DA 2ª SUPERINTENDÊNCIA REGIONAL DA CODEVASF, NO ESTADO DA BAHIA.
A7: ANEXO 4 - TRAJETO PARA TRANSPORTE DE MATERIAL DA JAZIDA AO LOCAL DA OBRA

Sheet DET. ENCARGOS
A1: MINISTÉRIO DA INTEGRAÇÃO E DO DESENVOLVIMENTO REGIONAL - MIDR
A2: COMPANHIA DE DESENVOLVIMENTO DOS VALES DO SÃO FRANCISCO E DO PARNAÍBA
A3: 2ª SUPERINTENDÊNCIA REGIONAL - BOM JESUS DA LAPA/BA.
A5: OBJETO: CONTRATAÇÃO DE OBRAS E SERVIÇOS DE ENGENHARIA PARA REGULARIZAÇÃO DE SUBLEITO E EXECUÇÃO DE REVESTIMENTO PRIMÁRIO NA ESTRADA DA IPUEIRA, MUNICÍPIO DE SERRA DO RAMALHO, NA ÁREA DE ABRANGÊNCIA DA 2ª SUPERINTENDÊNCIA REGIONAL DA CODEVASF, NO ESTADO DA BAHIA.
A7: ANEXO 4 - DETALHAMENTO DE ENCARGOS SOCIAIS - HORISTAS E MENSALISTAS 2025 BAHIA (SEM DESONERAÇÃO)
A9: DISCRIMINAÇÃO | C9: HORISTA | D9: MENSALISTA
C10: % | D10: %
A11: A | B11: ENCARGOS SOCIAIS BÁSICOS
A12: A1 | B12: INSS | C12: 20 | D12: 20
A13: A2 | B13: SESI | C13: 1.5 | D13: 1.5
A14: A3 | B14: SENAI | C14: 1 | D14: 1
A15: A4 | B15: INCRA | C15: 0.2 | D15: 0.2
A16: A5 | B16: SEBRAE | C16: 0.6 | D16: 0.6
A17: A6 | B17: Salário Educação | C17: 2.5 | D17: 2.5
A18: A7 | B18: Seguro Contra Acidente de Trabalho | C18: 3 | D18: 3
A19: A8 | B19: FGTS | C19: 8 | D19: 8
A20: A9 | B20: SECONCI | C20: 0 | D20: 0
A21: SUBTOTAL DE “A”: | C21: =SUM(C12:C20) -> 36.8 | D21: =SUM(D12:D20) -> 36.8
A22: B | B22: ENCARGOS SOCIAIS QUE RECEBEM INCIDÊNCIA DE “A”
A23: B1 | B23: Repouso Semanal Remunerado | C23: 17.98 | D23: Não incide
A24: B2 | B24: Feriados | C24: 3.97 | D24: Não incide
A25: B3 | B25: Auxílio-Enfermidade | C25: 0.86 | D25: 0.65
A26: B4 | B26: 13º Salário | C26: 11.07 | D26: 8.33
A27: B5 | B27: Licença Paternidade | C27: 0.07 | D27: 0.05
A28: B6 | B28: Faltas Justificadas | C28: 0.74 | D28: 0.56
A29: B7 | B29: Dias de Chuva | C29: 2.14 | D29: Não incide
A30: B8 | B30: Auxílio Acidente de Trabalho | C30: 0.1 | D30: 0.07
A31: B9 | B31: Férias Gozadas | C31: 11.92 | D31: 8.97
A32: B10 | B32: Salário Maternidade | C32: 0.03 | D32: 0.03
A33: SUBTOTAL DE “B”: | C33: =SUM(C23:C32) -> 48.88 | D33: =SUM(D25,D26,D27,D28,D30,D31,D32) -> 18.66
A34: C | B34: ENCARGOS SOCIAIS QUE NÃO RECEBEM INCIDÊNCIA DE “A”
A35: C1 | B35: Aviso Prévio Indenizado | C35: 5.49 | D35: 4.13
A36: C2 | B36: Aviso Prévio Trabalhado | C36: 0.13 | D36: 0.1
A37: C3 | B37: Férias Indenizadas | C37: 2.36 | D37: 1.77
A38: C4 | B38: Depósito Rescisão Sem Justa Causa | C38: 2.97 | D38: 2.24
A39: C5 | B39: Indenização Adicional | C39: 0.46 | D39: 0.35
A40: SUBTOTAL DE “C”: | C40: =SUM(C35:C39) -> 11.41 | D40: =SUM(D35:D39) -> 8.59
A41: D | B41: REINCIDÊNCIAS DE UM GRUPO SOBRE O OUTRO
A42: D1 | B42: Reincidência de “A” sobre “B” | C42: 17.99 | D42: 6.87
A43: D2 | B43: Reincidência de Grupo A sobre Aviso Prévio Trabalhado e Reincidência do FGTS sobre Aviso Prévio Indenizado | C43: 0.49 | D43: 0.37
A44: SUBTOTAL DE “D”: | C44: =SUM(C42:C43) -> 18.48 | D44: =SUM(D42:D43) -> 7.24
A45: TOTAIS DE ENCARGOS SOCIAIS (%): | C45: =SUM(C21,C33,C40,C44) -> 115.57 | D45: =SUM(D21,D33,D40,D44) -> 71.29

Sheet BDI
B2: ANEXO 4 - PLANILHA DE DETALHAMENTO DO BDI
B4: OBJETO: CONTRATAÇÃO DE OBRAS E SERVIÇOS DE ENGENHARIA PARA REGULARIZAÇÃO DE SUBLEITO E EXECUÇÃO DE REVESTIMENTO PRIMÁRIO NA ESTRADA DA IPUEIRA, MUNICÍPIO DE SERRA DO RAMALHO, NA ÁREA DE ABRANGÊNCIA DA 2ª SUPERINTENDÊNCIA REGIONAL DA CODEVASF, NO ESTADO DA BAHIA.
B6: MEMÓRIA DE CALCULO DO BDI DOS SERVIÇOS - NÃO DESONERADO
M7: Obras rodoviárias
B8: BDI APLICADO NA OBRA (SEM RISCO, SEGURO E GARANTIA) | F8: FAIXAS DE ADMISSIBILIDADE DE ACORDO COM O ACORDÃO N. 2622/2013 DO TCU | M8: FAIXAS DE ADMISSIBILIDADE DE ACORDO COM O ACORDÃO N. 2622/2013 DO TCU
B9: ITEM | C9: DISCRIMINAÇÃO | D9: PERC. (%)
F10: MÍNIMO | G10: MÉDIO | I10: MÁXIMO | M10: MÍNIMO | N10: MÉDIO | P10: MÁXIMO
B12: 1.00 | C12: Despesas Indiretas
B13: A1 | C13: Seguro e Garantia | D13: =G13 -> 0.004 | F13: 0.0032 | G13: 0.004 | I13: 0.0074 | M13: 0.0032 | N13: 0.004 | P13: 0.0074
B14: A2 | C14: Riscos e Imprevistos | D14: =G14 -> 0.0056 | F14: 0.005 | G14: 0.0056 | I14: 0.0097 | M14: 0.005 | N14: 0.0056 | P14: 0.0097
B15: A3 | C15: Despesas Financeiras | D15: 0.0111 | F15: 0.0102 | G15: 0.0111 | I15: 0.0121 | M15: 0.0102 | N15: 0.0111 | P15: 0.0121
B16: A4 | C16: Administração Central | D16: 0.0401 | F16: 0.038 | G16: 0.0401 | I16: 0.0467 | M16: 0.038 | N16: 0.0401 | P16: 0.0467
B17: Total do Grupo A = | D17: =SUM(D13:D16) -> 0.0608
B19: 2.00 | C19: Benefício
B20: B-1 | C20: LUCRO | D20: 0.0686 | F20: 0.0664 | G20: 0.073 | I20: 0.0869 | M20: 0.0664 | N20: 0.073 | P20: 0.0869
B21: Total do Grupo B = | D21: =SUM(D20) -> 0.0686
B23: 3.00 | C23: Impostos | F23: CÁLCULO DO ISS
B24: C-1 | C24: PIS / PASEP | D24: 0.0065 | F24: ALÍQUOTA MUNICIPAL (%) | G24: % DE MÃO DE OBRA | I24: ALÍQUOTA FINAL (%)
B25: C-2 | C25: COFINS | D25: 0.03
B26: C-3 | C26: ISS | D26: =I27 -> 0.03
F27: 0.05 | G27: 0.6 | I27: =G27*F27 -> 0.03
B28: C-4 | C28: CPRB (Contribuição Previdenciária sobre o Lucro Bruto) | D28: 0
B29: Total do Grupo C = | D29: =SUM(D24:D28) -> 0.0665
C31: Fórmula Para Cálculo do B.D.I
B33: BDI =(((1+A4+A1+A2)*(1+A3)*(1+B1))/(1-C))-1
B36: Bonificação Sobre Despesas indiretas (B.D.I) = | D36: =(((1+D16+D13+D14)*(1+D15)*(1+D21))/(1-D29))-1 -> 0.2149548951
